bitfinex-derivatives/quotes_BTCF0:USTF0_20251214
["timestamp","ask_amount","ask_price","bid_price","bid_amount"]
[1765756150816,0.41691012,88173.0,88172.0,0.42696]
[1765756151619,0.41691012,88173.0,88172.0,0.4383005]
[1765756151824,0.00017012,88173.0,88172.0,0.4383005]
[1765756153022,0.00017012,88173.0,88172.0,0.4403005]
[1765756153224,0.6442,88193.0,88192.0,0.42696]
[1765756153419,0.6442,88193.0,88191.0,0.11816]
[1765756153420,0.00874084,88196.0,88195.0,0.42696]
[1765756153824,0.42548084,88196.0,88195.0,0.42696]
[1765756156828,0.42548084,88196.0,88195.0,0.4382976]
[1765756157024,0.31479687,88196.0,88195.0,0.4382976]
[1765756157324,0.00016978,88204.0,88203.0,0.42696]
[1765756157531,0.41690978,88204.0,88203.0,0.42696]
[1765756158131,0.00016978,88204.0,88203.0,0.42696]
[1765756158827,0.00216978,88204.0,88203.0,0.42696]
[1765756159027,0.00316978,88204.0,88203.0,0.42696]
[1765756160533,0.41990978,88204.0,88203.0,0.42696]
[1765756161032,0.41674,88198.0,88197.0,0.78776]
[1765756161225,0.41674,88198.0,88197.0,0.57483]
[1765756161632,0.41674,88198.0,88197.0,0.3608]
[1765756163143,0.11666,88200.0,88187.0,0.01150862]
[1765756163144,0.41674,88190.0,88187.0,0.00017012]
[1765756164621,0.41674,88190.0,88189.0,0.3618]
[1765756165227,0.41674,88190.0,88189.0,0.3638]
[1765756165830,0.41674,88190.0,88189.0,0.3618]
[1765756166035,0.53166,88190.0,88189.0,0.3628]
[1765756166540,0.41674,88190.0,88189.0,0.002]
[1765756166832,0.41674,88190.0,88189.0,0.39554]
[1765756167623,0.90738,88194.0,88193.0,0.40748]
[1765756167838,0.2022,88201.0,88193.0,0.40748]
[1765756167839,0.2022,88201.0,88200.0,0.5434169]
[1765756168629,0.59656,88201.0,88200.0,0.53208]
[1765756169141,0.39674,88201.0,88200.0,0.53208]
[1765756169332,0.2022,88201.0,88200.0,0.53208]
[1765756169732,0.2032,88201.0,88200.0,0.53208]
[1765756170033,0.2042,88201.0,88200.0,0.53208]
[1765756170933,0.75516,88229.0,88228.0,0.19873]
[1765756171133,0.55534,88229.0,88228.0,0.40748]
[1765756171342,0.19454,88229.0,88228.0,0.40748]
[1765756171531,0.39436,88229.0,88228.0,0.40748]
[1765756171929,0.40036,88229.0,88228.0,0.40848]
[1765756172126,0.006,88229.0,88228.0,0.40848]
[1765756172332,0.20054,88229.0,88228.0,0.40848]
[1765756172626,0.40436,88229.0,88228.0,0.40848]
[1765756173238,0.40236,88229.0,88228.0,0.40748]
[1765756173632,0.20254,88229.0,88228.0,0.40748]
[1765756173832,0.008,88229.0,88228.0,0.40748]
[1765756175435,0.004,88229.0,88228.0,0.40748]
[1765756175644,0.49630506,88238.0,88237.0,0.40748]
[1765756175841,0.39436,88238.0,88237.0,0.40748]
[1765756176745,0.39536,88238.0,88237.0,0.40748]
[1765756177129,0.39536,88238.0,88237.0,0.4188122]
[1765756177332,0.19554,88238.0,88237.0,0.4188122]
[1765756177743,0.19654,88238.0,88237.0,0.4188122]
[1765756178150,0.002,88238.0,88237.0,0.4188122]
[1765756181538,0.14926532,88250.0,88236.0,0.1246]
[1765756181736,0.14926532,88250.0,88249.0,0.40748]
[1765756181937,0.75516,88257.0,88256.0,0.40748]
[1765756182944,0.39436,88257.0,88256.0,0.40748]
[1765756183443,0.28367603,88257.0,88256.0,0.40748]
[1765756183644,0.28767603,88257.0,88256.0,0.40748]
[1765756184541,0.29167603,88257.0,88256.0,0.40748]
[1765756184850,0.39436,88242.0,88237.0,0.3608]
[1765756185037,0.39436,88242.0,88241.0,0.40765001]
[1765756185835,0.39436,88242.0,88241.0,0.00017001]
[1765756186145,0.39436,88242.0,88241.0,0.00217001]
[1765756187648,0.39536,88242.0,88241.0,0.00217001]
[1765756188041,0.39536,88242.0,88241.0,0.20090001]
[1765756188238,0.001,88242.0,88241.0,0.40965001]
[1765756188445,0.3608,88248.0,88247.0,0.40748]
[1765756188647,0.34380532,88251.0,88250.0,0.53208]
[1765756188845,0.54362532,88260.0,88259.0,0.40748]
[1765756189150,0.39436,88260.0,88259.0,0.40748]
[1765756189552,0.39436,88260.0,88251.0,0.3608]
[1765756189851,0.2022,88262.0,88252.0,0.4188101]
[1765756189852,0.19454,88253.0,88252.0,0.4188101]
[1765756190056,0.19454,88253.0,88252.0,0.40748]
[1765756190940,0.001,88260.0,88259.0,0.4188093]
[1765756190941,0.39636,88260.0,88259.0,0.4188093]
[1765756191143,0.002,88260.0,88259.0,0.4188093]
[1765756191647,0.001,88260.0,88259.0,0.4188093]
[1765756192151,0.0113277,88272.0,88252.0,0.3608]
[1765756192152,0.14922514,88280.0,88273.0,0.19873]
[1765756192451,0.39436,88271.0,88270.0,0.53208]
[1765756192647,0.39436,88267.0,88266.0,0.3608]
[1765756193844,0.39436,88267.0,88265.0,0.00017001]
[1765756193845,0.4056884,88266.0,88265.0,0.00017001]
[1765756194146,0.39436,88248.0,88247.0,0.76828]
[1765756195543,0.39436,88248.0,88247.0,0.77228]
[1765756195739,0.39436,88248.0,88247.0,0.004]
[1765756197759,0.39436,88248.0,88247.0,0.003]
[1765756198259,0.39436,88248.0,88247.0,0.19999]
[1765756198461,0.39436,88248.0,88247.0,0.41009]
[1765756198760,0.3608,88250.0,88249.0,0.40809]
[1765756199565,0.42571,88248.0,88247.0,0.002]
[1765756199949,0.42571,88245.0,88244.0,0.0113312]
[1765756200359,0.42571,88240.0,88239.0,0.00017001]
[1765756200673,0.0113308,88248.0,88241.0,0.40809]
[1765756200674,0.3608,88242.0,88241.0,0.40809]
[1765756200854,0.68552,88248.0,88240.0,0.1398818]
[1765756200855,0.90013,88248.0,88247.0,0.003]
[1765756201062,1.11123,88248.0,88247.0,0.003]
[1765756201653,1.11123,88248.0,88239.0,0.00017001]
[1765756201654,0.5492418,88240.0,88239.0,0.00017001]
[1765756201858,0.5492418,88240.0,88239.0,0.00217001]
[1765756202052,0.53791,88240.0,88239.0,0.00217001]
[1765756202249,0.42571,88240.0,88239.0,0.20016001]
[1765756202961,0.42571,88240.0,88239.0,0.00217001]
[1765756203151,0.42571,88240.0,88239.0,0.41026001]
[1765756203352,0.42679032,88240.0,88239.0,0.41026001]
[1765756204055,0.42679032,88240.0,88239.0,0.41126001]
[1765756205358,0.42679032,88240.0,88239.0,0.20116001]
[1765756205946,0.42679032,88240.0,88239.0,0.41126001]
[1765756208662,0.00108032,88240.0,88239.0,0.45194864]
[1765756208852,0.00108032,88240.0,88239.0,0.41126001]
[1765756209053,0.68552,88248.0,88247.0,0.41814868]
[1765756209558,0.14922514,88254.0,88253.0,0.40809]
[1765756209761,0.4133,88255.0,88254.0,0.41942]
[1765756209947,0.62791,88255.0,88254.0,0.40809]
[1765756210962,0.42571,88251.0,88250.0,0.5479705]
[1765756211464,0.2111,88251.0,88250.0,0.5479705]
[1765756211960,0.42571,88251.0,88250.0,0.5479705]
[1765756212164,0.42571,88251.0,88250.0,0.58869694]
[1765756212470,0.42571,88251.0,88250.0,0.59369694]
[1765756213057,0.42571,88251.0,88250.0,0.5529705]
[1765756213357,0.42571,88251.0,88250.0,0.5539705]
[1765756214362,0.4133,88255.0,88254.0,0.41942]
[1765756214564,0.62791,88255.0,88254.0,0.41942]
[1765756214954,0.42571,88255.0,88254.0,0.41942]
[1765756215563,0.42571,88255.0,88254.0,0.42142]
[1765756215762,0.42571,88255.0,88254.0,0.42342]
[1765756216265,0.00016965,88256.0,88254.0,0.42342]
[1765756216266,0.00016965,88256.0,88255.0,0.40809]
[1765756218463,0.00016965,88256.0,88255.0,0.41009]
[1765756219262,0.00016965,88256.0,88255.0,0.40809]
[1765756219462,0.00016965,88256.0,88255.0,0.41109]
[1765756219859,0.00016965,88256.0,88255.0,0.41309]
[1765756220469,0.71224,88263.0,88262.0,0.4194189]
[1765756220672,0.2111,88272.0,88271.0,0.0113278]
[1765756220868,0.2111,88272.0,88271.0,0.4194178]
[1765756221460,0.42571,88272.0,88271.0,0.4194178]
[1765756222072,0.42571,88272.0,88271.0,0.4204178]
[1765756224079,0.42571,88272.0,88271.0,0.40909]
[1765756226675,0.2111,88272.0,88271.0,0.40909]
[1765756227980,0.41092,88272.0,88271.0,0.40909]
[1765756231081,0.41092,88272.0,88271.0,0.001]
[1765756231270,0.50644,88272.0,88271.0,0.001]
[1765756232471,0.39669,88264.0,88263.0,0.00017001]
[1765756233079,0.39669,88264.0,88263.0,0.39849001]
[1765756233579,0.14920513,88273.0,88272.0,0.5255177]
[1765756233580,0.54589513,88273.0,88272.0,0.5255177]
[1765756233774,0.3608,88276.0,88273.0,0.39832]
[1765756234683,0.24501,88274.0,88273.0,0.39832]
[1765756235573,0.44769,88274.0,88273.0,0.39832]
[1765756236474,0.051,88274.0,88273.0,0.39832]
[1765756237478,0.24601,88274.0,88273.0,0.39832]
[1765756237878,0.44769,88274.0,88273.0,0.39832]
[1765756239888,0.051,88274.0,88273.0,0.39832]
[1765756241284,0.24601,88274.0,88273.0,0.39832]
[1765756242089,0.051,88274.0,88273.0,0.39832]
[1765756243890,0.44769,88274.0,88273.0,0.39832]
[1765756244187,0.051,88274.0,88273.0,0.39832]
[1765756245283,0.051,88274.0,88273.0,0.43899661]
[1765756245585,0.051,88274.0,88273.0,0.39832]
[1765756246188,0.051,88274.0,88273.0,0.43899661]
[1765756246387,0.051,88274.0,88273.0,0.39832]
[1765756246589,0.02545489,88274.0,88273.0,0.39832]
[1765756246785,1.21023779,88290.0,88289.0,0.39832]
[1765756246982,0.71184,88290.0,88289.0,0.39832]
[1765756247181,1.10853,88290.0,88289.0,0.39832]
[1765756247982,1.10953,88290.0,88289.0,0.39832]
[1765756248184,1.11153,88290.0,88289.0,0.39832]
[1765756248783,0.39669,88285.0,88284.0,0.51419]
[1765756249680,0.39669,88285.0,88281.0,0.00016991]
[1765756249881,0.39669,88282.0,88281.0,0.00016991]
[1765756250886,0.39669,88282.0,88281.0,0.19340991]
[1765756251089,0.39669,88282.0,88281.0,0.00016991]
[1765756251392,0.39669,88282.0,88281.0,0.00116991]
[1765756251582,0.39669,88282.0,88281.0,0.19440991]
[1765756251783,0.39669,88282.0,88281.0,0.19540991]
[1765756251982,0.39669,88282.0,88281.0,0.19440991]
[1765756252596,0.39669,88282.0,88281.0,0.00116991]
[1765756253096,0.39669,88282.0,88281.0,0.19440991]
[1765756253484,0.39669,88282.0,88281.0,0.00116991]
[1765756255289,0.39669,88267.0,88266.0,0.04073085]
[1765756255495,0.39669,88265.0,88264.0,0.30911]
[1765756255994,0.39669,88265.0,88264.0,0.51419]
[1765756256791,0.39669,88265.0,88264.0,0.51619]
[1765756257783,0.39669,88265.0,88264.0,0.002]
[1765756257990,0.39669,88265.0,88264.0,0.004]
[1765756258398,0.39669,88265.0,88264.0,0.39734]
[1765756258792,0.39669,88265.0,88264.0,0.20269]
[1765756258989,0.39669,88265.0,88264.0,0.004]
[1765756259590,0.37881,88261.0,88260.0,0.3608]
[1765756259790,0.37881,88261.0,88260.0,0.55949]
[1765756260293,0.37881,88261.0,88260.0,0.75414]
[1765756261601,0.37881,88261.0,88260.0,0.75614]
[1765756261800,0.37881,88261.0,88260.0,0.56149]
[1765756262004,0.37881,88261.0,88260.0,0.3628]
[1765756262304,0.37881,88261.0,88246.0,0.39334]
[1765756262305,0.37881,88247.0,88246.0,0.39334]
[1765756262901,0.37881,88247.0,88246.0,0.19869]
[1765756263701,0.37881,88247.0,88246.0,0.20069]
[1765756264005,0.37881,88247.0,88246.0,0.39734]
[1765756264197,0.37881,88247.0,88246.0,0.39634]
[1765756264700,0.37881,88247.0,88246.0,0.002]
[1765756264995,0.37881,88247.0,88246.0,0.39534]
[1765756265201,0.73961,88251.0,88250.0,0.39334]
[1765756266994,0.00016991,88255.0,88254.0,0.39334]
[1765756268407,0.00116991,88255.0,88254.0,0.39334]
[1765756269207,0.37997991,88255.0,88251.0,0.0113304]
[1765756269405,0.73961,88252.0,88251.0,0.19869]
[1765756269707,0.73961,88252.0,88246.0,0.39334]
[1765756269708,0.37881,88247.0,88246.0,0.39334]
[1765756270207,0.37881,88247.0,88246.0,0.404671]
[1765756270504,0.73961,88252.0,88251.0,0.4046704]
[1765756270805,0.19314991,88255.0,88254.0,0.39334]
[1765756271492,0.00116991,88255.0,88254.0,0.39334]
[1765756271697,0.3608,88267.0,88266.0,0.4046684]
[1765756273015,0.00016957,88275.0,88264.0,0.11806]
[1765756273016,0.00016957,88275.0,88274.0,0.4046674]
[1765756274710,0.00016957,88275.0,88274.0,0.4066674]
[1765756275212,0.00016957,88275.0,88274.0,0.4086674]
[1765756277216,0.19214957,88275.0,88274.0,0.4086674]
[1765756277517,0.37897957,88275.0,88274.0,0.26742015]
[1765756278510,0.37897957,88275.0,88274.0,0.25609275]
[1765756278705,0.37897957,88275.0,88274.0,0.004]
[1765756278914,0.37897957,88275.0,88274.0,0.20269]
[1765756279106,0.37897957,88275.0,88274.0,0.39734]
[1765756280007,0.37897957,88275.0,88274.0,0.39534]
[1765756280208,0.37897957,88275.0,88274.0,0.003]
[1765756281112,0.37897957,88275.0,88274.0,0.39634]
[1765756281712,0.37897957,88275.0,88274.0,0.39534]
[1765756281713,0.00016957,88275.0,88274.0,0.39534]
[1765756282507,0.37897957,88275.0,88274.0,0.39534]
[1765756286225,0.00016957,88275.0,88274.0,0.39534]
[1765756286425,0.3608,88286.0,88285.0,0.481486]
[1765756286721,0.3608,88292.0,88291.0,0.4814852]
[1765756287417,0.81366,88292.0,88291.0,0.4814852]
[1765756287626,0.2386028,88311.0,88310.0,0.47016]
[1765756287918,0.3608,88312.0,88311.0,0.47016]
[1765756287919,0.81366,88312.0,88311.0,0.47016]
[1765756288433,0.45286,88306.0,88305.0,0.4814833]
[1765756288830,0.45286,88306.0,88305.0,0.47016]
[1765756289821,0.45286,88306.0,88305.0,0.47316]
[1765756290022,0.45286,88306.0,88305.0,0.47616]
[1765756290525,0.22728,88306.0,88305.0,0.47616]
[1765756291123,0.8251,88312.0,88311.0,0.4841427]
[1765756292023,0.23387,88312.0,88311.0,0.4841427]
[1765756292315,0.23387,88312.0,88311.0,0.4861427]
[1765756292517,0.23387,88312.0,88311.0,0.4881427]
[1765756292709,0.4643,88312.0,88311.0,0.4881427]
[1765756293524,0.96838,88312.0,88311.0,0.47682]
[1765756295414,0.96838,88312.0,88311.0,0.24374]
[1765756295614,0.96838,88312.0,88311.0,0.004]
[1765756296123,0.96838,88312.0,88311.0,0.24374]
[1765756296320,0.59467,88312.0,88311.0,0.47482]
[1765756296916,0.3608,88312.0,88311.0,0.47482]
[1765756297424,0.3608,88330.0,88311.0,0.47482]
[1765756297425,0.3608,88322.0,88321.0,0.4841414]
[1765756297631,0.8251,88322.0,88321.0,0.4841414]
[1765756297820,0.8251,88322.0,88321.0,0.47282]
[1765756298824,0.3608,88322.0,88321.0,0.47282]
[1765756299022,0.3608,88369.0,88366.0,0.23308]
[1765756299211,0.3608,88369.0,88336.0,0.0667]
[1765756299212,0.23387,88337.0,88335.0,0.3608]
[1765756299417,0.14328,88360.0,88320.0,0.17377569]
[1765756299418,0.4643,88321.0,88320.0,0.0113215]
[1765756299721,0.4643,88321.0,88297.0,0.04037569]
[1765756299722,0.4643,88317.0,88316.0,0.4841419]
[1765756300119,0.4643,88317.0,88316.0,0.47282]
[1765756300320,0.4643,88309.0,88308.0,0.47298981]
[1765756300525,0.23387,88309.0,88308.0,0.47298981]
[1765756301618,0.56599711,88318.0,88317.0,0.47282]
[1765756301829,0.00016949,88325.0,88324.0,0.47282]
[1765756302329,0.00016949,88325.0,88324.0,0.83362]
[1765756303323,0.00016949,88325.0,88324.0,0.83662]
[1765756303727,0.94607,88344.0,88343.0,0.47282]
[1765756303921,1.1765,88344.0,88343.0,0.47282]
[1765756304119,0.23387,88336.0,88335.0,0.4841395]
[1765756304417,0.4643,88336.0,88335.0,0.4841395]
[1765756304613,0.4643,88336.0,88335.0,0.2510595]
[1765756304826,0.7122,88344.0,88330.0,0.47282]
[1765756304827,0.4643,88331.0,88330.0,0.47282]
[1765756305218,0.3608,88348.0,88330.0,0.47282]
[1765756305219,0.3608,88350.0,88349.0,0.47282]
[1765756305424,0.16028591,88360.0,88349.0,0.4841377]
[1765756305741,0.3608,88361.0,88360.0,0.47282]
[1765756305926,0.06074788,88390.0,88352.0,0.1334]
[1765756305927,0.59467,88376.0,88375.0,0.47282]
[1765756306319,0.3608,88376.0,88375.0,0.47282]
[1765756307732,0.48498603,88376.0,88375.0,0.47282]
[1765756308032,0.003,88376.0,88375.0,0.47282]
[1765756310827,0.8251,88392.0,88391.0,0.47282]
[1765756311332,0.4643,88392.0,88391.0,0.47282]
[1765756312233,0.4683,88392.0,88391.0,0.47282]
[1765756313036,0.4723,88392.0,88391.0,0.47282]
[1765756313221,0.008,88392.0,88391.0,0.47282]
[1765756314128,0.004,88392.0,88391.0,0.47282]
[1765756314324,0.59467,88397.0,88396.0,0.47282]
[1765756314532,0.3608,88397.0,88396.0,0.47282]
[1765756314718,0.8251,88397.0,88396.0,0.47282]
[1765756315315,0.23043,88392.0,88391.0,0.005]
[1765756315520,0.4643,88392.0,88391.0,0.005]
[1765756315926,0.4643,88392.0,88391.0,0.004]
[1765756316727,0.56113,88389.0,88388.0,0.00016971]
[1765756316928,0.92193,88389.0,88388.0,0.00016971]
[1765756317128,0.63349,88371.0,88370.0,0.75921]
[1765756317530,0.99429,88378.0,88377.0,0.62581]
[1765756317837,0.63349,88371.0,88370.0,0.75921]
[1765756318024,0.63349,88371.0,88370.0,0.62581]
[1765756318327,0.3608,88378.0,88363.0,0.4942]
[1765756318328,0.30623,88364.0,88363.0,1.12001]
[1765756318933,0.63349,88364.0,88363.0,1.12001]
[1765756319732,0.14881521,88373.0,88362.0,0.00016971]
[1765756319733,0.644806,88363.0,88362.0,0.00016971]
[1765756319922,0.63349,88363.0,88362.0,0.62597971]
[1765756320322,0.003,88364.0,88363.0,0.62581]
[1765756320834,0.002,88364.0,88363.0,0.62581]
[1765756321431,0.63549,88364.0,88363.0,0.62681]
[1765756321837,0.63365936,88379.0,88378.0,0.62581]
[1765756322031,1.34669936,88379.0,88378.0,0.62581]
[1765756323637,0.00016936,88379.0,88378.0,0.6381241]
[1765756324137,0.00016936,88379.0,88378.0,0.6391241]
[1765756324735,0.63365936,88379.0,88378.0,0.62781]
[1765756324934,0.30639936,88379.0,88378.0,0.62781]
[1765756325137,0.00016936,88379.0,88378.0,0.62781]
[1765756325340,0.00016936,88379.0,88378.0,0.62881]
[1765756325532,0.63365936,88379.0,88378.0,0.62881]
[1765756325744,0.63365936,88379.0,88378.0,0.30498]
[1765756325938,0.63365936,88379.0,88378.0,0.003]
[1765756326134,0.63365936,88379.0,88378.0,0.004]
[1765756326933,0.30623,88363.0,88362.0,0.98677971]
[1765756327647,0.30623,88363.0,88362.0,0.62597971]
[1765756327942,0.63349,88363.0,88362.0,0.00016971]
[1765756328138,0.63349,88363.0,88362.0,0.00216971]
[1765756328444,0.3608,88365.0,88362.0,0.62797971]
[1765756328645,0.71312,88371.0,88370.0,0.82149]
[1765756328845,0.00216936,88379.0,88378.0,0.62581]
[1765756329233,0.30623,88371.0,88370.0,0.82149]
[1765756329540,0.63349,88371.0,88370.0,0.62581]
[1765756329742,0.63349,88371.0,88370.0,0.30198]
[1765756329945,0.63349,88363.0,88362.0,0.62797971]
[1765756330241,0.63349,88363.0,88362.0,0.62597971]
[1765756330741,0.644806,88363.0,88362.0,0.00016971]
[1765756331247,0.644806,88363.0,88362.0,0.62597971]
[1765756332040,0.3608,88364.0,88363.0,0.62581]
[1765756332344,0.99429,88364.0,88363.0,0.62581]
[1765756333644,0.99429,88364.0,88363.0,0.62781]
[1765756333842,1.0056059,88364.0,88363.0,0.002]
[1765756334236,1.0056059,88364.0,88363.0,0.30398]
[1765756334543,1.0056059,88364.0,88363.0,0.002]
[1765756334742,0.66703,88364.0,88363.0,0.62781]
[1765756335237,0.99429,88364.0,88363.0,0.62781]
[1765756335437,0.99429,88364.0,88363.0,0.002]
[1765756335638,0.99429,88364.0,88363.0,0.003]
[1765756335837,0.99429,88364.0,88363.0,0.002]
[1765756336340,0.99429,88364.0,88363.0,0.003]
[1765756336541,0.99429,88364.0,88363.0,0.62881]
[1765756336936,0.99429,88364.0,88363.0,0.62681]
[1765756337436,0.99429,88364.0,88363.0,0.62581]
[1765756337437,0.99629,88364.0,88363.0,0.62581]
[1765756337837,0.66903,88364.0,88363.0,0.62581]
[1765756338039,0.66903,88364.0,88330.0,0.19568]
[1765756338040,0.6448078,88349.0,88330.0,0.19568]
[1765756338233,0.6448078,88349.0,88331.0,0.3608]
[1765756338234,0.63349,88332.0,88331.0,0.3608]
[1765756338438,0.63349,88332.0,88310.0,0.19568]
[1765756338439,0.0113232,88307.0,88305.0,0.04054457]
[1765756338742,0.16534,88320.0,88291.0,0.00012467]
[1765756338743,0.16534,88320.0,88306.0,0.0113233]
[1765756338945,0.30623,88330.0,88329.0,0.62581]
[1765756339139,0.30623,88330.0,88308.0,0.13597]
[1765756339140,0.30623,88322.0,88321.0,0.00016981]
[1765756339338,0.63349,88322.0,88321.0,0.00016981]
[1765756339939,0.63349,88306.0,88305.0,0.007]
[1765756340339,0.63349,88306.0,88296.0,0.19568]
[1765756340750,0.63349,88306.0,88297.0,0.0113245]
[1765756341148,0.3608,88298.0,88297.0,0.6371345]
[1765756342943,0.3608,88298.0,88297.0,0.6451345]
[1765756343346,0.3618,88298.0,88297.0,0.6531345]
[1765756345248,0.3608,88298.0,88297.0,0.6431345]
[1765756345754,0.3608,88298.0,88297.0,0.6401345]
[1765756345948,0.3608,88298.0,88297.0,0.6481345]
[1765756346148,0.001,88298.0,88297.0,0.6581345]
[1765756346453,0.002,88298.0,88297.0,0.6641345]
[1765756347053,0.69223,88298.0,88297.0,0.6641345]
[1765756347243,0.34989,88298.0,88297.0,0.6641345]
[1765756347448,0.002,88298.0,88297.0,0.8778845]
[1765756347952,0.3608,88306.0,88305.0,0.7018534]
[1765756349351,0.3608,88306.0,88305.0,0.7048534]
[1765756349549,0.00016981,88310.0,88309.0,0.69053]
[1765756349853,0.83558521,88330.0,88329.0,0.69053]
[1765756350048,0.68677,88330.0,88329.0,0.69053]
[1765756350245,0.34869,88330.0,88329.0,0.69053]
[1765756350549,0.34869,88330.0,88321.0,0.34335]
[1765756350550,0.68677,88322.0,88321.0,0.34335]
[1765756350747,0.68677,88322.0,88321.0,0.00016981]
[1765756350954,0.57608604,88322.0,88321.0,0.00016981]
[1765756351656,0.57608604,88322.0,88321.0,0.00116981]
[1765756352552,0.3608,88323.0,88322.0,0.7018513]
[1765756352752,0.34969,88330.0,88329.0,0.69053]
[1765756353051,0.68777,88330.0,88329.0,0.69053]
[1765756353251,0.68677,88330.0,88329.0,0.69053]
[1765756353455,0.90056,88330.0,88329.0,0.69053]
[1765756354060,0.90156,88330.0,88329.0,0.69053]
[1765756354352,0.68677,88323.0,88322.0,0.34335]
[1765756354552,0.68677,88322.0,88321.0,0.00116981]
[1765756355155,0.68677,88322.0,88321.0,0.00016981]
[1765756355455,0.68677,88328.0,88327.0,0.7018506]
[1765756356247,0.001,88330.0,88329.0,0.69053]
[1765756356652,0.34969,88330.0,88329.0,0.69053]
[1765756356863,0.68777,88330.0,88329.0,0.69053]
[1765756357166,0.68677,88330.0,88329.0,0.69053]
[1765756357352,0.90056,88330.0,88329.0,0.69053]
[1765756357749,0.90156,88330.0,88321.0,0.01149111]
[1765756357953,0.68677,88322.0,88321.0,0.00016981]
[1765756358353,1.40017,88322.0,88321.0,0.00016981]
[1765756360363,1.40017,88322.0,88294.0,0.3608]
[1765756360364,0.7134,88322.0,88304.0,0.0113235]
[1765756360559,0.68677,88306.0,88304.0,0.0113235]
[1765756361071,0.68677,88305.0,88304.0,0.3546735]
[1765756361360,0.68677,88305.0,88304.0,0.7018535]
[1765756362360,0.68677,88310.0,88309.0,0.7018528]
[1765756362553,0.00016981,88313.0,88309.0,0.7018528]
[1765756362753,0.00016981,88313.0,88312.0,0.69053]
[1765756362960,0.00016981,88313.0,88312.0,1.05133]
[1765756364062,0.00016981,88313.0,88312.0,1.05433]
[1765756365470,0.00016981,88313.0,88312.0,1.05633]
[1765756372275,0.45025799,88330.0,88329.0,0.69053]
[1765756372572,0.70697,88336.0,88335.0,0.7018496]
[1765756372777,0.70697,88336.0,88335.0,0.69053]
[1765756374073,0.68677,88331.0,88330.0,0.3546702]
[1765756374277,0.68677,88331.0,88330.0,0.7018502]
[1765756375963,0.68977,88331.0,88330.0,0.7018502]
[1765756377868,0.003,88331.0,88330.0,0.7018502]
[1765756378073,0.69785,88331.0,88330.0,0.7018502]
[1765756378375,0.69785,88331.0,88327.0,0.00016981]
[1765756378376,0.69485,88328.0,88327.0,0.00016981]
[1765756380574,0.69585,88328.0,88327.0,0.00016981]
[1765756381575,0.001,88328.0,88327.0,0.68514041]
[1765756381782,0.69585,88328.0,88327.0,0.68514041]
[1765756381970,0.69585,88328.0,88327.0,0.00016981]
[1765756382575,0.69585,88328.0,88327.0,0.33102981]
[1765756382769,0.69585,88328.0,88327.0,0.67381981]
[1765756382770,0.001,88328.0,88327.0,0.67381981]
[1765756383173,0.001,88328.0,88327.0,0.71443838]
[1765756383980,0.0008301,88328.0,88327.0,0.71443838]
[1765756384482,0.0202,88336.0,88335.0,0.6849696]
[1765756384680,0.69485,88329.0,88328.0,0.6849704]
[1765756385181,0.7061705,88328.0,88327.0,0.01416981]
[1765756385387,0.7071705,88328.0,88327.0,0.02816981]
[1765756385783,0.69485,88328.0,88327.0,0.02549041]
[1765756386580,0.69585,88328.0,88327.0,0.03949041]
[1765756386885,0.69585,88328.0,88327.0,0.02549041]
[1765756387689,0.69685,88328.0,88327.0,0.03949041]
[1765756387989,0.69685,88328.0,88327.0,0.02816981]
[1765756388297,1.4211305,88328.0,88327.0,0.02816981]
[1765756390989,0.7061719,88317.0,88315.0,0.04062015]
[1765756391183,0.69485,88308.0,88307.0,0.71427015]
[1765756391387,0.69485,88308.0,88307.0,0.67365]
[1765756391786,0.69485,88308.0,88307.0,0.6849732]
[1765756392085,0.34348,88308.0,88307.0,0.6849732]
[1765756392788,0.34348,88308.0,88307.0,0.6889732]
[1765756393288,0.34348,88308.0,88307.0,0.72564929]
[1765756393472,0.34348,88308.0,88307.0,0.73464929]
[1765756393877,0.69485,88308.0,88307.0,0.73464929]
[1765756394992,0.69485,88308.0,88307.0,0.72764929]
[1765756395178,0.69501981,88316.0,88315.0,0.6849721]
[1765756395382,0.69501981,88316.0,88315.0,0.72564819]
[1765756395383,0.00016981,88316.0,88315.0,0.72564819]
[1765756395687,0.34364981,88316.0,88315.0,0.72564819]
[1765756396093,0.69501981,88316.0,88315.0,0.72564819]
[1765756396593,0.34364981,88316.0,88315.0,0.72564819]
[1765756397088,0.69501981,88316.0,88315.0,0.72564819]
[1765756397484,0.69701981,88316.0,88315.0,0.72664819]
[1765756397686,0.69701981,88316.0,88315.0,0.38385819]
[1765756397986,0.69701981,88316.0,88315.0,0.3431821]
[1765756398289,0.70001981,88316.0,88315.0,0.3431821]
[1765756398485,0.70001981,88316.0,88315.0,0.6859721]
[1765756398681,0.73154181,88316.0,88315.0,0.001]
[1765756398886,0.69485,88309.0,88308.0,0.67365]
[1765756401497,0.69585,88309.0,88308.0,0.003]
[1765756401695,0.69585,88309.0,88308.0,0.006]
[1765756401993,0.69585,88309.0,88308.0,0.33686]
[1765756402193,0.69585,88309.0,88308.0,0.006]
[1765756402395,0.69585,88309.0,88308.0,0.67965]
[1765756404299,0.69585,88309.0,88308.0,0.33686]
[1765756404494,0.69585,88309.0,88308.0,0.006]
[1765756404794,0.71605,88309.0,88308.0,0.006]
[1765756405184,0.71605,88309.0,88308.0,0.33686]
[1765756405784,0.71605,88309.0,88308.0,0.006]
[1765756407296,1.42829,88309.0,88308.0,0.6896]
[1765756407499,0.68997,88309.0,88308.0,0.6896]
[1765756407697,0.36267,88309.0,88308.0,0.6896]
[1765756408592,0.68997,88309.0,88308.0,0.6896]
[1765756410393,0.68997,88309.0,88308.0,0.006]
[1765756411299,0.68997,88309.0,88308.0,0.35669]
[1765756411605,0.68997,88309.0,88308.0,0.70633]
[1765756412396,0.0212,88309.0,88308.0,0.70633]
[1765756413301,0.36267,88309.0,88308.0,0.70633]